fUSD/lending_fUSD_20250115
["ID","MTS","AMOUNT","RATE_DAILY","PERIOD"]
[349003314,1736931053185,-500.0,0.00014383,2]
[349003315,1736931053196,-169.61,0.0001446,2]
[349003316,1736931053208,-182.43,0.00014491,2]
[349003317,1736931053217,-1750.0,0.000145,5]
[349003318,1736931053227,-409.9,0.00014657,2]
[349003319,1736931053237,-539.67,0.00014657,2]
[349003320,1736931053247,-548.03,0.00014657,2]
[349003321,1736931053257,-507.22,0.00014657,2]
[349003322,1736931053267,-508.34,0.00014657,2]
[349003323,1736931053277,-500.0,0.00014657,2]
[349003324,1736931053287,-247.07,0.00014657,2]
[349003325,1736931053296,-500.0,0.00014657,2]
[349003326,1736931053306,-328.12,0.00014657,2]
[349003327,1736931053316,-500.0,0.00014657,2]
[349003328,1736931053326,-761.52,0.00014657,2]
[349003329,1736931053335,-500.0,0.00014657,2]
[349003330,1736931053346,-500.0,0.00014657,2]
[349003331,1736931053355,-500.0,0.00014657,2]
[349003332,1736931053365,-500.0,0.00014657,2]
[349003333,1736931053374,-500.0,0.00014657,2]
[349003334,1736931053383,-305.60827069,0.00014693,2]
[349003335,1736931053393,-500.0,0.0001474,2]
[349003336,1736931053403,-270.73,0.00014874,2]
[349003337,1736931053413,-245.64,0.00014891,2]
[349003338,1736931053423,-539.67,0.00014931,2]
[349003339,1736931053432,-507.22,0.00014931,2]
[349003340,1736931053442,-548.03,0.00014931,2]
[349003341,1736931053452,-508.34,0.00014931,2]
[349003342,1736931053462,-500.0,0.00014931,2]
[349003343,1736931053472,-500.0,0.00014931,2]
[349003344,1736931053481,-500.0,0.00014931,2]
[349003345,1736931053492,-761.52,0.00014931,2]
[349003346,1736931053504,-500.0,0.00014931,2]
[349003347,1736931053514,-500.0,0.00014931,2]
[349003348,1736931053524,-500.0,0.00014931,2]
[349003349,1736931053535,-500.0,0.00014931,2]
[349003350,1736931053544,-500.0,0.00014931,2]
[349003351,1736931053554,-277.62960156,0.00014969,2]
[349003352,1736931053564,-277.62960156,0.0001497,2]
[349003353,1736931053574,-277.62960156,0.00014982,2]
[349003354,1736931053584,-277.62960156,0.00014983,2]
[349003355,1736931053593,-277.62960156,0.00014987,2]
[349003356,1736931053603,-6072.0,0.00015,2]
[349003357,1736931053613,-650.0,0.00015,2]
[349003358,1736931053622,-300.0,0.00015068,2]
[349003359,1736931053632,-305.60827069,0.00015072,2]
[349003360,1736931053642,-539.67,0.00015205,2]
[349003361,1736931053652,-507.22,0.00015205,2]
[349003362,1736931053663,-548.03,0.00015205,2]
[349003363,1736931053674,-508.34,0.00015205,2]
[349003364,1736931053683,-500.0,0.00015205,2]
[349003365,1736931053694,-500.0,0.00015205,2]
[349003366,1736931053703,-500.0,0.00015205,2]
[349003367,1736931053714,-761.52,0.00015205,2]
[349003368,1736931053723,-360.64163069,0.00015205,2]
[349003369,1736931053734,-500.0,0.00015205,2]
[349003370,1736931053744,-150.42015053,0.00015205,2]
[349003371,1736931053754,-500.0,0.00015205,2]
[349003372,1736931053764,-371.74554875,0.00015205,2]
[349003373,1736931053775,-710.295042,0.00015248,2]
[349003374,1736931053784,-710.295042,0.00015248,2]
[349003375,1736931053794,-510.474995,0.00015248,2]
[349003376,1736931053804,-582.37397455,0.00015248,2]
[349003377,1736931053815,-155.31,0.00015311,2]
[349003378,1736931053825,-155.31,0.00015316,2]
[349003379,1736931053834,-155.31,0.0001532,2]
[349003380,1736931053843,-155.31,0.00015325,2]
[349003381,1736931053852,-155.31,0.00015329,2]
[349003382,1736931053862,-155.31,0.00015334,2]
[349003383,1736931053871,-155.31,0.00015338,2]
[349003384,1736931053881,-155.31,0.00015343,2]
[349003385,1736931053891,-155.31,0.00015347,2]
[349003386,1736931053911,-155.31,0.00015352,2]
[349003387,1736931053922,-155.31,0.00015356,2]
[349003388,1736931053932,-155.31,0.00015361,2]
[349003389,1736931053942,-155.31,0.00015365,2]
[349003390,1736931053952,-155.31,0.0001537,2]
[349003391,1736931053962,-155.31,0.00015374,2]
[349003392,1736931053972,-155.31,0.00015379,2]
[349003393,1736931053982,-155.31,0.00015383,2]
[349003394,1736931053992,-155.31,0.00015388,2]
[349003395,1736931054002,-3165.579986,0.00015388,2]
[349003396,1736931054012,-3165.579986,0.00015388,2]
[349003397,1736931054022,-277.062887,0.00015388,2]
[349003398,1736931054032,-277.062887,0.00015388,2]
[349003399,1736931054042,-171.390932,0.00015388,2]
[349003400,1736931054053,-171.390932,0.00015388,2]
[349003401,1736931054062,-151.0,0.00015388,2]
[349003402,1736931054072,-151.0,0.00015388,2]
[349003403,1736931054082,-305.60827069,0.00015452,2]
[349003404,1736931054092,-539.67,0.00015479,2]
[349003405,1736931054103,-507.22,0.00015479,2]
[349003406,1736931054113,-548.03,0.00015479,2]
[349003407,1736931054123,-508.34,0.00015479,2]
[349003408,1736931054133,-500.0,0.00015479,2]
[349003409,1736931054143,-500.0,0.00015479,2]
[349003410,1736931054152,-500.0,0.00015479,2]
[349003411,1736931054237,-761.52,0.00015479,2]
[349003412,1736931054247,-500.0,0.00015479,2]
[349003413,1736931054257,-161.92,0.00015479,2]
[349003414,1736931054267,-355.809032,0.00015753,2]
[349003415,1736931054276,-355.809032,0.00015753,2]
[349003416,1736931054286,-151.0,0.00015753,2]
[349003417,1736931054295,-539.67,0.00015753,2]
[349003418,1736931054305,-507.22,0.00015753,2]
[349003419,1736931054315,-548.03,0.00015753,2]
[349003420,1736931054324,-508.34,0.00015753,2]
[349003421,1736931054333,-500.0,0.00015753,2]
[349003422,1736931054342,-500.0,0.00015753,2]
[349003423,1736931054352,-500.0,0.00015753,2]
[349003424,1736931054361,-761.52,0.00015753,2]
[349003425,1736931054370,-345.36,0.00015753,2]
[349003426,1736931054380,-305.60827069,0.00015831,2]
[349003427,1736931054389,-539.67,0.00016027,2]
[349003428,1736931054399,-507.22,0.00016027,2]
[349003429,1736931054409,-548.03,0.00016027,2]
[349003430,1736931054418,-508.34,0.00016027,2]
[349003431,1736931054428,-318.28,0.00016027,2]
[349003432,1736931054438,-404.89,0.00016027,2]
[349003433,1736931054448,-500.0,0.00016027,2]
[349003434,1736931054458,-761.52,0.00016027,2]
[349003435,1736931054468,-194.92,0.00016054,2]
[349003436,1736931054478,-500.0,0.00016164,2]
[349003437,1736931054489,-500.0,0.00016164,2]
[349003438,1736931054502,-282.81689205,0.00016164,2]
[349003439,1736931054512,-305.60827069,0.0001621,2]
[349003440,1736931054522,-1659.17746703,0.00016211,2]
[349003441,1736931054532,-844.62,0.00016247,2]
[349003442,1736931054542,-539.83,0.00016301,2]
[349003443,1736931054552,-507.42,0.00016301,2]
[349003444,1736931054562,-548.0910784,0.00016301,2]
[349003445,1736931054572,-508.5,0.00016301,2]
[349003446,1736931054582,-156.64,0.00016301,2]
[349003447,1736931054592,-761.59842867,0.00016301,2]
[349003448,1736931054601,-300.0,0.00016438,2]
[349003449,1736931054611,-305.60827069,0.0001659,2]
[349003450,1736931054620,-240.98858562,0.00016809,2]
[349003451,1736931054630,-533.11,0.00016813,2]
[349003452,1736931054640,-776.44,0.00016856,2]
[349003453,1736931054649,-1884.29,0.000169,2]
[349003454,1736931054659,-151.0,0.000169,2]
[349003455,1736931054668,-158.816653,0.000169,2]
[349003456,1736931054677,-158.816653,0.000169,2]
[349003457,1736931054687,-151.0,0.000169,2]
[349003458,1736931054697,-151.0,0.000169,2]
[349003459,1736931054707,-162.11873,0.000169,2]
[349003460,1736931054717,-305.60827069,0.00016969,2]
[349003461,1736931054727,-9999.0,0.00017,2]
[349003462,1736931054737,-9999.0,0.00017,2]
[349003463,1736931054747,-10381.89740594,0.00017,2]
[349003464,1736931054756,-700.0,0.00017,2]
[349003465,1736931054766,-5003.3866054,0.00017,4]
[349003466,1736931054777,-221.750407,0.00017,2]
[349003467,1736931054786,-341.578087,0.00017,2]
[349003468,1736931054795,-341.578087,0.00017,2]
[349003469,1736931054805,-1810.703772,0.00017,2]
[349003470,1736931054815,-516.653822,0.00017,2]
[349003471,1736931054825,-516.653822,0.00017,2]
[349003472,1736931054835,-151.0,0.00017,2]
[349003473,1736931054844,-151.0,0.00017,2]
[349003474,1736931054853,-151.0,0.00017,2]
[349003475,1736931054863,-254.462209,0.00017,2]
[349003476,1736931054873,-151.0,0.00017,2]
[349003477,1736931054883,-233.6,0.00017,2]
[349003478,1736931054892,-168.1915,0.00017,2]
[349003479,1736931054902,-233.6,0.00017,2]
[349003480,1736931054911,-168.1915,0.00017,2]
[349003481,1736931054921,-399.986696,0.00017,2]
[349003482,1736931054931,-399.986696,0.00017,2]
[349003483,1736931054941,-618.367828,0.00017,2]
[349003484,1736931054951,-618.367828,0.00017,2]
[349003485,1736931054961,-10000.0,0.00017,2]
[349003486,1736931054971,-10000.0,0.00017,2]
[349003487,1736931054981,-10000.0,0.00017,2]
[349003488,1736931054990,-10000.0,0.00017,2]
[349003489,1736931055000,-281.751225,0.00017,2]
[349003490,1736931055009,-281.751225,0.00017,2]
[349003491,1736931055019,-151.0,0.00017,2]
[349003492,1736931055029,-151.0,0.00017,2]
[349003493,1736931055038,-160.37,0.00017,2]
[349003494,1736931055048,-160.37,0.00017,2]
[349003495,1736931055057,-489.443337,0.00017,2]
[349003496,1736931055068,-489.443337,0.00017,2]
[349003497,1736931055078,-264.46587,0.00017,2]
[349003498,1736931055087,-264.46587,0.00017,2]
[349003499,1736931055097,-245.64,0.00017115,2]
[349003500,1736931055107,-151.0,0.00017179,2]
[349003501,1736931055116,-151.0,0.00017273,2]
[349003502,1736931055126,-219.137275,0.00017273,2]
[349003503,1736931055136,-219.137275,0.00017273,2]
[349003504,1736931055145,-182.578732,0.00017273,2]
[349003505,1736931055154,-305.60827069,0.00017348,2]
[349003506,1736931055164,-500.0,0.00017534,2]
[349003507,1736931055173,-152.0,0.00017545,3]
[349003508,1736931055183,-305.60827069,0.00017728,2]
[349003509,1736931055192,-500.0,0.00017737,2]
[349003510,1736931055202,-151.0,0.00017778,2]
[349003511,1736931055213,-158.816653,0.00017778,2]
[349003512,1736931055222,-158.816653,0.00017778,2]
[349003513,1736931055232,-151.0,0.00017778,2]
[349003514,1736931055242,-151.0,0.00017778,2]
[349003515,1736931055251,-151.257683,0.00017779,2]
[349003516,1736931055261,-151.0,0.00017779,2]
[349003517,1736931055270,-151.0,0.00017779,2]
[349003518,1736931055280,-151.0,0.00017779,2]
[349003519,1736931055290,-151.0,0.00017779,2]
[349003520,1736931055299,-151.0,0.00017779,2]
[349003521,1736931055308,-219.137275,0.00017779,2]
[349003522,1736931055317,-219.137275,0.00017779,2]
[349003523,1736931055327,-341.578087,0.00017779,2]
[349003524,1736931055336,-341.578087,0.00017779,2]
[349003525,1736931055345,-1810.703772,0.00017779,2]
[349003526,1736931055355,-516.653822,0.00017779,2]
[349003527,1736931055364,-151.0,0.00017779,2]
[349003528,1736931055373,-516.653822,0.00017779,2]
[349003529,1736931055382,-151.0,0.00017779,2]
[349003530,1736931055392,-151.0,0.00017779,2]
[349003531,1736931055401,-158.816653,0.00017779,2]
[349003532,1736931055410,-158.816653,0.00017779,2]
[349003533,1736931055419,-151.0,0.00017779,2]
[349003534,1736931055429,-151.0,0.00017779,2]
[349003535,1736931055439,-151.0,0.00017779,2]
[349003536,1736931055449,-151.0,0.00017779,2]
[349003537,1736931055458,-233.6,0.00017779,2]
[349003538,1736931055467,-233.6,0.00017779,2]
[349003539,1736931055477,-355.809032,0.00017779,2]
[349003540,1736931055488,-355.809032,0.00017779,2]
[349003541,1736931055501,-710.295042,0.00017779,2]
[349003542,1736931055511,-710.295042,0.00017779,2]
[349003543,1736931055520,-510.474995,0.00017779,2]
[349003544,1736931055531,-89397.94072329,0.0001778,2]
[349003545,1736931055540,-302.24109379,0.0001778,2]
[349003546,1736931055550,-151.0,0.0001778,2]
[349003547,1736931055560,-219.137275,0.0001778,2]
[349003548,1736931055570,-219.137275,0.0001778,2]
[349003549,1736931055579,-341.578087,0.0001778,2]
[349003550,1736931055588,-341.578087,0.0001778,2]
[349003551,1736931055598,-1810.703772,0.0001778,2]
[349003552,1736931055608,-516.653822,0.0001778,2]
[349003553,1736931055617,-151.0,0.0001778,2]
[349003554,1736931055627,-516.653822,0.0001778,2]
[349003555,1736931055636,-151.0,0.0001778,2]
[349003556,1736931055645,-151.0,0.0001778,2]
[349003557,1736931055658,-158.816653,0.0001778,2]
[349003558,1736931055667,-158.816653,0.0001778,2]
[349003559,1736931055676,-202.155906,0.0001778,2]
[349003560,1736931055686,-151.0,0.0001778,2]
[349003561,1736931055696,-168.1915,0.0001778,2]
[349003562,1736931055706,-168.1915,0.0001778,2]
[349003563,1736931055716,-355.809032,0.0001778,2]
[349003564,1736931055725,-355.809032,0.0001778,2]
[349003565,1736931055735,-151.0,0.0001778,2]
[349003566,1736931055744,-399.986696,0.0001778,2]
[349003567,1736931055754,-399.986696,0.0001778,2]
[349003568,1736931055764,-618.367828,0.0001778,2]
[349003569,1736931055773,-618.367828,0.0001778,2]
[349003570,1736931055783,-10000.0,0.0001778,2]
[349003571,1736931055793,-10000.0,0.0001778,2]
[349003572,1736931055802,-10000.0,0.0001778,2]
[349003573,1736931055812,-10000.0,0.0001778,2]
[349003574,1736931055821,-281.751225,0.0001778,2]
[349003575,1736931055830,-281.751225,0.0001778,2]
[349003576,1736931055840,-3165.579986,0.0001778,2]
[349003577,1736931055850,-3165.579986,0.0001778,2]
[349003578,1736931055859,-277.062887,0.0001778,2]
[349003579,1736931055869,-277.062887,0.0001778,2]
[349003580,1736931055878,-171.390932,0.0001778,2]
[349003581,1736931055888,-171.390932,0.0001778,2]
[349003582,1736931055897,-151.0,0.0001778,2]
[349003583,1736931055907,-153.971182,0.0001778,2]
[349003584,1736931055916,-151.0,0.0001778,2]
[349003585,1736931055926,-151.0,0.0001778,2]
[349003586,1736931055935,-160.37,0.0001778,2]
[349003587,1736931055944,-160.37,0.0001778,2]
[349003588,1736931055954,-489.443337,0.0001778,2]
[349003589,1736931055963,-489.443337,0.0001778,2]
[349003590,1736931055972,-264.46587,0.0001778,2]
[349003591,1736931055981,-264.46587,0.0001778,2]
[349003592,1736931055990,-151.0,0.00017811,2]
[349003593,1736931055999,-151.0,0.00017811,2]
[349003594,1736931056009,-233.6,0.00017811,2]
[349003595,1736931056018,-233.6,0.00017811,2]
[349003596,1736931056027,-500.0,0.00017811,2]
[349003597,1736931056036,-500.0,0.00017811,2]
[349003598,1736931056044,-200.0,0.00017811,2]
[349003599,1736931056053,-200.0,0.00017811,2]
[349003600,1736931056063,-199.0,0.00017811,2]
[349003601,1736931056073,-492.0,0.00017811,2]
[349003602,1736931056082,-200.0,0.00017811,2]
[349003603,1736931056092,-200.0,0.00017811,2]
[349003604,1736931056101,-152.0,0.00017835,4]
[349003605,1736931056109,-500.82459365,0.0001787,2]
[349003606,1736931056119,-400.0,0.0001787,2]
[349003607,1736931056127,-151.0,0.00017878,2]
[349003608,1736931056137,-151.0,0.00017878,2]
[349003609,1736931056146,-151.0,0.00017878,2]
[349003610,1736931056155,-151.0,0.00017878,2]
[349003611,1736931056164,-151.0,0.00017878,2]
[349003612,1736931056174,-500.0,0.00017878,2]
[349003613,1736931056184,-219.137275,0.00017878,2]
[349003614,1736931056193,-219.137275,0.00017878,2]
[349003615,1736931056203,-500.0,0.00017878,2]
[349003616,1736931056213,-500.0,0.00017878,2]
[349003617,1736931056223,-500.0,0.00017878,2]
[349003618,1736931056233,-500.0,0.00017878,2]
[349003619,1736931056243,-500.0,0.00017878,2]
[349003620,1736931056253,-500.0,0.00017878,2]
[349003621,1736931056262,-500.0,0.00017878,2]
[349003622,1736931056272,-500.0,0.00017878,2]
[349003623,1736931056282,-500.0,0.00017878,2]
[349003624,1736931056293,-151.0,0.00017878,2]
[349003625,1736931056304,-500.0,0.00017878,2]
[349003626,1736931056314,-798.99,0.00017878,2]
[349003627,1736931056324,-158.816653,0.00017878,2]
[349003628,1736931056334,-158.816653,0.00017878,2]
[349003629,1736931056343,-500.0,0.00017878,2]
[349003630,1736931056353,-151.0,0.00017878,2]
[349003631,1736931056363,-500.0,0.00017878,2]
[349003632,1736931056372,-559.88,0.00017878,2]
[349003633,1736931056383,-500.0,0.00017878,2]
[349003634,1736931056394,-500.0,0.00017878,2]
[349003635,1736931056404,-500.0,0.00017878,2]
[349003636,1736931056414,-500.0,0.00017878,2]
[349003637,1736931056424,-500.0,0.00017878,2]
[349003638,1736931056433,-710.295042,0.00017878,2]
[349003639,1736931056443,-710.295042,0.00017878,2]
[349003640,1736931056452,-1000.0,0.00017878,2]
[349003641,1736931056462,-500.0,0.00017878,2]
[349003642,1736931056472,-500.0,0.00017878,2]
[349003643,1736931056481,-510.474995,0.00017878,2]
[349003644,1736931056492,-500.0,0.00017878,2]
[349003645,1736931056502,-500.0,0.00017878,2]
[349003646,1736931056511,-151.0,0.0001788,2]
[349003647,1736931056520,-151.0,0.0001788,2]
[349003648,1736931056531,-151.0,0.0001788,2]
[349003649,1736931056541,-151.0,0.0001788,2]
[349003650,1736931056550,-341.578087,0.0001788,2]
[349003651,1736931056559,-341.578087,0.0001788,2]
[349003652,1736931056571,-1810.703772,0.0001788,2]
[349003653,1736931056581,-516.653822,0.0001788,2]
[349003654,1736931056591,-516.653822,0.0001788,2]
[349003655,1736931056600,-151.0,0.0001788,2]
[349003656,1736931056610,-151.0,0.0001788,2]
[349003657,1736931056620,-168.1915,0.0001788,2]
[349003658,1736931056630,-168.1915,0.0001788,2]
[349003659,1736931056640,-1000.0,0.0001788,2]
[349003660,1736931056649,-1000.0,0.0001788,2]
[349003661,1736931056659,-1000.0,0.0001788,2]
[349003662,1736931056669,-1000.0,0.0001788,2]
[349003663,1736931056679,-1000.0,0.0001788,2]
[349003664,1736931056689,-1000.0,0.0001788,2]
[349003665,1736931056698,-1000.0,0.0001788,2]
[349003666,1736931056707,-1000.0,0.0001788,2]
[349003667,1736931056717,-1000.0,0.0001788,2]
[349003668,1736931056727,-1000.0,0.0001788,2]
[349003669,1736931056737,-2600.0,0.000179,6]
[349003670,1736931056746,-2100.0,0.000179,6]
[349003671,1736931056757,-5373.13,0.000179,2]
[349003672,1736931056770,-399.986696,0.000179,2]
[349003673,1736931056781,-399.986696,0.000179,2]
[349003674,1736931056791,-618.367828,0.000179,2]
[349003675,1736931056801,-618.367828,0.000179,2]
[349003676,1736931056811,-10000.0,0.000179,2]
[349003677,1736931056821,-157.41475601,0.000179,2]
[349003678,1736931056831,-10000.0,0.000179,2]
[349003679,1736931056842,-157.41475585,0.000179,2]
[349003680,1736931056851,-10000.0,0.000179,2]
[349003681,1736931056862,-10000.0,0.000179,2]
[349003682,1736931056871,-281.751225,0.000179,2]
[349003683,1736931056881,-157.41475585,0.000179,2]
[349003684,1736931056891,-281.751225,0.000179,2]
[349003685,1736931056900,-157.41475585,0.000179,2]
[349003686,1736931056910,-157.41475585,0.000179,2]
[349003687,1736931056921,-157.41475585,0.000179,2]
[349003688,1736931056931,-157.41475585,0.000179,2]
[349003689,1736931056941,-157.41475585,0.000179,2]
[349003690,1736931056951,-157.41475585,0.000179,2]
[349003691,1736931056962,-157.41475585,0.000179,2]
[349003692,1736931056972,-157.41475585,0.000179,2]
[349003693,1736931056982,-157.41475585,0.000179,2]
[349003694,1736931056992,-157.41475585,0.000179,2]
[349003695,1736931057002,-157.41475585,0.000179,2]
[349003696,1736931057011,-157.41475585,0.000179,2]
[349003697,1736931057021,-157.41475585,0.000179,2]
[349003698,1736931057031,-157.41475585,0.000179,2]
[349003699,1736931057041,-157.41475585,0.000179,2]
[349003700,1736931057051,-200.06,0.00017928,2]
[349003701,1736931057061,-151.0,0.00017945,2]
[349003702,1736931057071,-219.137275,0.00017945,2]
[349003703,1736931057082,-219.137275,0.00017945,2]
[349003704,1736931057093,-151.0,0.00017945,2]
[349003705,1736931057102,-158.816653,0.00017945,2]
[349003706,1736931057112,-158.816653,0.00017945,2]
[349003707,1736931057122,-246.344019,0.00017945,2]
[349003708,1736931057132,-151.0,0.00017945,2]
[349003709,1736931057142,-151.0,0.00017945,2]
[349003710,1736931057153,-233.6,0.00017945,2]
[349003711,1736931057163,-233.6,0.00017945,2]
[349003712,1736931057172,-355.809032,0.00017945,2]
[349003713,1736931057182,-355.809032,0.00017945,2]
[349003714,1736931057193,-2999.0,0.00017945,2]
[349003715,1736931057203,-2999.0,0.00017945,2]
[349003716,1736931057214,-2999.0,0.00017945,2]
[349003717,1736931057224,-2999.0,0.00017945,2]
[349003718,1736931057234,-2999.0,0.00017945,2]
[349003719,1736931057244,-2999.0,0.00017945,2]
[349003720,1736931057254,-2999.0,0.00017945,2]
[349003721,1736931057265,-2999.0,0.00017945,2]
[349003722,1736931057275,-2999.0,0.00017945,2]
[349003723,1736931057285,-1614.09944047,0.00017945,2]
[349003724,1736931057295,-151.0,0.00017945,2]
[349003725,1736931057305,-160.37,0.00017945,2]
[349003726,1736931057315,-160.37,0.00017945,2]
[349003727,1736931057326,-489.443337,0.00017945,2]
[349003728,1736931057336,-489.443337,0.00017945,2]
[349003729,1736931057345,-264.46587,0.00017945,2]
[349003730,1736931057355,-264.46587,0.00017945,2]
[349003731,1736931057365,-11501.77932805,0.0001795,5]
[349003732,1736931057375,-614.0,0.00017952,2]
[349003733,1736931057385,-400.0,0.0001797,2]
[349003734,1736931057396,-400.0,0.0001797,2]
[349003735,1736931057407,-400.0,0.0001797,2]
[349003736,1736931057419,-502.095164,0.0001797,2]
[349003737,1736931057430,-400.0,0.0001797,2]
[349003738,1736931057441,-150.0,0.0001797,2]
[349003739,1736931057453,-511.0,0.0001797,2]
[349003740,1736931057463,-156.64577163,0.00017997,2]
[349003741,1736931057474,-511.0,0.00017997,2]
[349003742,1736931057484,-1800.0,0.00018,19]
[349003743,1736931057497,-15678.82408846,0.00018,7]
[349003744,1736931057508,-10015.41950104,0.00018,5]
[349003745,1736931057518,-150827.45289835,0.00018,2]
[349003746,1736931057528,-1458.19214683,0.00018,2]
[349003747,1736931057539,-166.0,0.00018,2]
[349003748,1736931057549,-417.0,0.00018,2]
[349003749,1736931057559,-200.0,0.00018,2]
[349003750,1736931057570,-151.0,0.00018,2]
[349003751,1736931057580,-151.221169,0.00018,2]
[349003752,1736931057591,-151.0,0.00018,2]
[349003753,1736931057601,-151.0,0.00018,2]
[349003754,1736931057612,-420.0,0.00018,5]
[349003755,1736931057623,-151.0,0.00018,2]
[349003756,1736931057633,-219.137275,0.00018,2]
[349003757,1736931057644,-219.137275,0.00018,2]
[349003758,1736931057654,-341.578087,0.00018,2]
[349003759,1736931057666,-341.578087,0.00018,2]
[349003760,1736931057677,-341.578087,0.00018,2]
[349003761,1736931057687,-341.578087,0.00018,2]
[349003762,1736931057698,-1810.703772,0.00018,2]
[349003763,1736931057709,-1810.703772,0.00018,2]
[349003764,1736931057720,-516.653822,0.00018,2]
[349003765,1736931057730,-516.653822,0.00018,2]
[349003766,1736931057740,-151.0,0.00018,2]
[349003767,1736931057751,-516.653822,0.00018,2]
[349003768,1736931057760,-516.653822,0.00018,2]
[349003769,1736931057771,-151.0,0.00018,2]
[349003770,1736931057782,-151.0,0.00018,2]
[349003771,1736931057792,-151.0,0.00018,2]
[349003772,1736931057801,-164.265223,0.00018,2]
[349003773,1736931057812,-158.816653,0.00018,2]
[349003774,1736931057823,-158.816653,0.00018,2]
[349003775,1736931057833,-151.0,0.00018,2]
[349003776,1736931057843,-151.0,0.00018,2]
[349003777,1736931057853,-233.6,0.00018,2]
[349003778,1736931057863,-168.1915,0.00018,2]
[349003779,1736931057874,-233.6,0.00018,2]
[349003780,1736931057884,-168.1915,0.00018,2]
[349003781,1736931057894,-355.809032,0.00018,2]
[349003782,1736931057904,-355.809032,0.00018,2]
[349003783,1736931057914,-710.295042,0.00018,2]
[349003784,1736931057924,-710.295042,0.00018,2]
[349003785,1736931057934,-710.295042,0.00018,2]
[349003786,1736931057944,-710.295042,0.00018,2]
[349003787,1736931057955,-23615.22737906,0.00018,2]
[349003788,1736931057968,-772.776817,0.00018,2]
[349003789,1736931057978,-151.0,0.00018,2]
[349003790,1736931057988,-180.226848,0.00018,2]
[349003791,1736931057998,-510.474995,0.00018,2]
[349003792,1736931058009,-510.474995,0.00018,2]
[349003793,1736931058019,-399.986696,0.00018,2]
[349003794,1736931058030,-399.986696,0.00018,2]
[349003795,1736931058040,-618.367828,0.00018,2]
[349003796,1736931058051,-618.367828,0.00018,2]
[349003797,1736931058062,-10000.0,0.00018,2]
[349003798,1736931058074,-10000.0,0.00018,2]
[349003799,1736931058084,-10000.0,0.00018,2]
[349003800,1736931058094,-10000.0,0.00018,2]
[349003801,1736931058103,-281.751225,0.00018,2]
[349003802,1736931058113,-281.751225,0.00018,2]
[349003803,1736931058123,-3165.579986,0.00018,2]
[349003804,1736931058133,-3165.579986,0.00018,2]
[349003805,1736931058144,-3165.579986,0.00018,2]
[349003806,1736931058154,-3165.579986,0.00018,2]
[349003807,1736931058164,-277.062887,0.00018,2]
[349003808,1736931058175,-277.062887,0.00018,2]
[349003809,1736931058186,-277.062887,0.00018,2]
[349003810,1736931058196,-277.062887,0.00018,2]
[349003811,1736931058207,-171.390932,0.00018,2]
[349003812,1736931058219,-171.390932,0.00018,2]
[349003813,1736931058230,-171.390932,0.00018,2]